Cogmind - Beta 14 @@@ ROGUE MODE // 2024.09.19 @ 16:14:44 Player: Triffids Result: Self-destructed Performance ------------- Evolutions (3) 1500 Regions Visited (4) 800 Robots Destroyed (42) 210 Value Destroyed (946) 946 Prototype IDs (3) 60 Alien Tech Used (0) 0 Bonus (16) 16 TOTAL SCORE: 3532 Bonus ------- High Alert Combat Kills 16 Cogmind --------- Core Integrity 700/700 Matter 300/300 Energy 160/160 System Corruption 1% Temperature Cool (0) Movement Walking (120) Location -7/Factory Parts ------- > --- POWER (1) -------- Light Nuclear Core > --- PROPULSION (4) --- Improved Carbon-fiber Leg Improved Carbon-fiber Leg Improved Carbon-fiber Leg Improved Carbon-fiber Leg > --- UTILITY (4) ------ Improved Heat Sink Improved Sensor Array Signal Interpreter Hardened Medium Armor Plating > --- WEAPON (4) ------- Pulse Rifle Enhanced Autogun Flak Gun Mini Grenade Launcher > --- INVENTORY (5) ---- Light Nuclear Core Carbon-fiber Leg Hacking Suite Shock Rifle Heavy Assault Rifle Peak State ------------ > --- POWER ------------ Light Nuclear Core > --- PROPULSION ------- Improved Carbon-fiber Leg Improved Carbon-fiber Leg Improved Carbon-fiber Leg Improved Carbon-fiber Leg > --- UTILITY ---------- Improved Heat Sink Improved Sensor Array Signal Interpreter Hardened Medium Armor Plating > --- WEAPON ----------- Pulse Rifle Enhanced Autogun Flak Gun Mini Grenade Launcher > --- INVENTORY -------- Light Nuclear Core Carbon-fiber Leg Medium Matter Pod Hacking Suite Heavy Assault Rifle [Rating: 43] Favorites ----------- Power Light Ion Engine Engine Light Ion Engine Power Core Light Nuclear Core Propulsion Improved Carbon-fiber Leg Leg Improved Carbon-fiber Leg Utility Small Storage Unit Device Improved Sensor Array Storage Small Storage Unit Processor Signal Interpreter Protection Light Armor Plating Weapon Improved Medium Laser Energy Gun Improved Medium Laser Ballistic Gun Assault Rifle Launcher Mini Grenade Launcher Build | -11 -10 -9 -8 -7 ------- Run | Yrd Mat Mat Mat Fac Slots Evolved 6 | . . 2 2 2 Power . | . . . . . Propulsion 2 | . . . 2 . Utility 2 | . . 2 . . Weapon 2 | . . . . 2 Parts Attached 50 | 7 1 19 19 4 Power 4 | 1 . 1 2 . Engine 3 | 1 . 1 1 . Core 1 | . . . 1 . Reactor . | . . . . . Propulsion 12 | 2 . 4 6 . Treads . | . . . . . Leg 12 | 2 . 4 6 . Wheel . | . . . . . Hover . | . . . . . Flight . | . . . . . Utility 15 | 2 . 6 6 1 Device 6 | 1 . 1 3 1 Storage 2 | 1 . . 1 . Processor 3 | . . 2 1 . Hackware . | . . . . . Protection 4 | . . 3 1 . Artifact . | . . . . . Weapon 19 | 2 1 8 5 3 Energy Gun 7 | 1 1 3 2 . Energy Cannon . | . . . . . Ballistic Gun 7 | 1 . 2 2 2 Ballistic Cannon . | . . . . . Launcher 5 | . . 3 1 1 Special Weapon . | . . . . . Impact Weapon . | . . . . . Slashing Weapon . | . . . . . Piercing Weapon . | . . . . . Special Melee Weapon . | . . . . . Unidentified Prototypes 2 | . . 1 1 . Parts Lost 2 | . . . 2 . Power . | . . . . . Propulsion . | . . . . . Utility 1 | . . . 1 . Weapon 1 | . . . 1 . Highest Loss Streak 1 | . . . 1 . To Critical Strikes . | . . . . . Average Slot Usage (%) 98 | . 100 95 99 100 Engine 9 | . 14 11 8 . Leg 28 | . 28 21 36 30 Device 10 | . 14 11 7 10 Storage 10 | . 14 11 9 4 Processor 9 | . . 9 14 7 Protection 5 | . . 8 4 7 Energy Gun 11 | . 14 12 9 7 Ballistic Gun 10 | . 14 9 7 15 Peak Build Rating 43 | 7 8 17 36 43 Average Rating 20 | 5 7 14 33 40 On Entrance 13 | . 7 8 17 35 Naked Turns . | . . . . . Heaviest Build 35 | 13 14 20 34 35 Greatest Support 62 | 20 20 26 62 36 Greatest Overweight (x) 1 | 1 . 1 1 . Average Overweight (x) . | . . . . . Largest Inventory Capacity 10 | 8 8 8 10 10 Average Capacity 8 | 7 8 8 9 8 Most Carried 10 | 5 7 8 10 6 Average Carried 6 | 2 4 7 7 5 Final Capacity 10 | 8 8 8 10 5 Final Carried 8 | 3 7 8 7 5 Class Distribution -------------------- 86% | Mutant 6% | Scavenger-Mutant 4% | Skirmisher Dominant Class ---------------- Mutant | -10/Materials Mutant | -9/Materials Mutant | -8/Materials Skirmisher | -7/Factory Resources | -11 -10 -9 -8 -7 ----------- Run | Yrd Mat Mat Mat Fac Matter Collected 1257 | 297 143 272 305 240 Remotely . | . . . . . Salvage Created 1229 | 114 102 468 405 140 Parts 90 | 13 8 42 21 6 Haulers Intercepted 2 | . . 1 1 . Recyclers Shooed 1 | . . 1 . . Parts Field Recycled . | . . . . . Retrieved Matter . | . . . . . Parts Self-Destructed . | . . . . . Prevented . | . . . . . Kills | -11 -10 -9 -8 -7 ------- Run | Yrd Mat Mat Mat Fac Combat Hostiles Destroyed 27 | . 1 17 8 1 Guns 18 | . 1 8 8 1 AOE 9 | . . 9 . . Classes Destroyed 11 | 1 3 5 1 1 Worker 1 | . 1 . . . Builder 1 | . . 1 . . Tunneler 5 | 5 . . . . Hauler 2 | . . 1 1 . Recycler 2 | . . 1 . 1 Operator 1 | . . . 1 . Watcher 3 | . 2 1 . . Swarmer 12 | . . 12 . . Grunt 9 | . 1 1 7 . Sentry 5 | . . 4 1 . Programmer 1 | . . . . 1 Best Kill Streak 6 | 2 2 5 6 2 Combat Bots Only 6 | . 1 4 6 1 Max Kills in Single Turn 2 | 1 2 2 1 2 Gunslinging . | . . . . . Exploded 2 | . . 2 . . Melee . | . . . . . Uniques/NPCs Destroyed . | . . . . . Combat | -11 -10 -9 -8 -7 -------- Run | Yrd Mat Mat Mat Fac Hostile Shots Fired 149 | . 5 78 62 4 Missed 43 | . 1 28 14 . Damage Taken 1526 | . 63 594 808 61 Core 222 | . . 140 82 . Absorbed by Shields . | . . . . . Core Remaining (%) 87 | 100 100 65 85 . Volleys Fired 104 | 9 11 43 39 2 Largest 3 | 2 2 2 2 3 Hottest 116 | 70 85 86 88 116 Shots Fired 208 | 18 22 86 76 6 Gun 199 | 18 22 79 74 6 Cannon . | . . . . . Launcher 9 | . . 7 2 . Special . | . . . . . Kinetic 97 | 9 11 36 37 4 Thermal 102 | 9 11 43 37 2 Explosive 9 | . . 7 2 . Electromagnetic . | . . . . . Robot Hit Streak 10 | 2 5 10 10 5 Robot Miss Streak 4 | 4 2 3 3 3 Penetration Max . | . . . . . Secondary Targets 3 | . . . 3 . Max Gunslinging Chain 1 | . . . 1 . Shots Hit Robots 123 | 7 13 50 49 4 Core Hits 60 | 5 6 25 20 4 Critical Kills . | . . . . . Critical Parts Destroyed . | . . . . . Critical Strikes 4 | . 1 1 2 . Burn 4 | . 1 1 2 . Melee Attacks . | . . . . . Impact . | . . . . . Slashing . | . . . . . Piercing . | . . . . . Sneak Attacks . | . . . . . Combat Hostiles . | . . . . . Follow-up Attacks . | . . . . . Damage Inflicted 2596 | 100 184 1365 848 99 Guns 1910 | 100 184 679 848 99 Cannons . | . . . . . Explosions 686 | . . 686 . . Melee . | . . . . . Ramming . | . . . . . Kinetic 831 | 51 97 268 360 55 Thermal 1079 | 49 87 411 488 44 Explosive 686 | . . 686 . . Electromagnetic . | . . . . . Impact . | . . . . . Slashing . | . . . . . Piercing . | . . . . . Highest Corruption 3 | . . . 3 1 Average Corruption 2 | . . . 2 1 Corruption Purged . | . . . . . Corruption Blocked . | . . . . . Effects 1 | . . . 1 . Message Errors 1 | . . . 1 . Overload Shots . | . . . . . Overflow Damage 69 | . . 69 . . Projectiles . | . . . . . Explosions 69 | . . 69 . . Melee . | . . . . . Knockbacks . | . . . . . Impact . | . . . . . Kinetic . | . . . . . Secondary . | . . . . . Self-Inflicted Damage 85 | . . 61 24 . Shots 5 | . . 4 1 . Rammed . | . . . . . Targets Rammed . | . . . . . Kicked . | . . . . . Crushed . | . . . . . Highest Temperature 235 | 36 96 87 235 122 Average Temperature 45 | 12 31 27 82 64 Received Heat Transfer 552 | . 33 96 423 . Siege Activations . | . . . . . Robots Corrupted . | . . . . . Combat Hostiles . | . . . . . Parts Fried . | . . . . . Impact Corruptions . | . . . . . Robots Melted . | . . . . . Combat Hostiles . | . . . . . Parts Melted 3 | . 1 1 1 . Heat Transferred 2664 | 148 296 962 1184 74 Parts Sabotaged . | . . . . . Parts Stolen . | . . . . . Parts Stripped . | . . . . . Power Chain Reactions . | . . . . . Alert | -11 -10 -9 -8 -7 ------- Run | Yrd Mat Mat Mat Fac Peak Influence 582 | 25 105 582 377 206 Initial 245 | . 16 44 245 171 Average 235 | 10 55 321 290 185 Maximum Alert Level 2 | . . 2 1 1 Low Security (%) 38 | 100 100 21 7 58 Level 1 52 | . . 57 92 41 Level 2 8 | . . 21 . . Level 3 . | . . . . . Level 4 . | . . . . . Level 5 . | . . . . . High Security . | . . . . . Max Security . | . . . . . Squads Dispatched 4 | . . 1 3 . Investigation 2 | . . 1 1 . Extermination . | . . . . . Reinforcement 2 | . . . 2 . Assault . | . . . . . Garrison . | . . . . . Intercept . | . . . . . Searches Triggered . | . . . . . Construction Impeded . | . . . . . Haulers Reinforced . | . . . . . Active Scanning Responses . | . . . . . Cargo Convoy Interrupts . | . . . . . Stealth | -11 -10 -9 -8 -7 --------- Run | Yrd Mat Mat Mat Fac Distress Signals 2 | . . 1 . 1 Communications Jammed . | . . . . . Distress Signals . | . . . . . Times Spotted 48 | . 5 25 16 2 Peak Tracking Total 11 | . 2 4 11 2 Tactical Retreats 9 | . 1 6 2 . Traps | -11 -10 -9 -8 -7 ------- Run | Yrd Mat Mat Mat Fac Traps Triggered 6 | . . 4 2 . Indirectly . | . . . . . Trap Hack Attempts . | . . . . . Triggered . | . . . . . Disarmed . | . . . . . Reprogrammed . | . . . . . Reused . | . . . . . Traps Extracted . | . . . . . Installed . | . . . . . Triggered . | . . . . . Machines | -11 -10 -9 -8 -7 ---------- Run | Yrd Mat Mat Mat Fac Machines Disabled 1 | . . . 1 . Max in Single Turn 1 | . . . 1 . Machines Repaired . | . . . . . Machines Dismantled . | . . . . . Machines Sabotaged . | . . . . . Overloaded Fab Kills . | . . . . . Hacking | -11 -10 -9 -8 -7 --------- Run | Yrd Mat Mat Mat Fac Machines Accessed 10 | . 1 3 5 1 Terminals 9 | . 1 3 5 . Fabricators . | . . . . . Repair Stations . | . . . . . Recycling Units 1 | . . . . 1 Scanalyzers . | . . . . . Garrison Access . | . . . . . Total Hacks 28 | . 4 7 16 1 Successful 15 | . 3 3 8 1 Failed 13 | . 1 4 8 . Catastrophic 3 | . . . 3 . Database Lockouts . | . . . . . Manual 19 | . 2 6 11 . Terminals 27 | . 4 7 16 . Fabricators . | . . . . . Repair Stations . | . . . . . Recycling Units 1 | . . . . 1 Scanalyzers . | . . . . . Garrison Access . | . . . . . Terminal Hacks 9 | . 2 1 6 . Robot Analysis 1 | . . . 1 . Prototype ID Bank 1 | . . . 1 . Level Access Points 1 | . . . 1 . Terminal Index 2 | . . 1 1 . Locate Traps 1 | . 1 . . . Hauler Manifests 1 | . 1 . . . Registered Components 1 | . . . 1 . Zone Layout 1 | . . . 1 . Fabricator Hacks . | . . . . . Repair Station Hacks . | . . . . . Recycling Unit Hacks 1 | . . . . 1 Report Inventory 1 | . . . . 1 Scanalyzer . | . . . . . Garrison Access Hacks . | . . . . . Unauthorized Hacks 5 | . 1 2 2 . Terminals 5 | . 1 2 2 . Botnet 5 | . 1 2 2 . Fabricators . | . . . . . Repair Stations . | . . . . . Recycling Units . | . . . . . Scanalyzers . | . . . . . Garrison Access . | . . . . . Data Cores Recovered 1 | . . . 1 . Used 1 | . . . 1 . Hacking Detections 9 | . 1 3 5 . Full Trace Events 2 | . . . 2 . Feedback Events . | . . . . . Feedback Blocked . | . . . . . Robot Schematics Acquired . | . . . . . Robots Built . | . . . . . Authchips . | . . . . . Time . | . . . . . Total Robot Build Rating . | . . . . . Part Schematics Acquired . | . . . . . Parts Built . | . . . . . Authchips . | . . . . . Time . | . . . . . Total Part Build Rating . | . . . . . Parts Repaired . | . . . . . Time . | . . . . . Parts Recycled . | . . . . . Recycled Matter . | . . . . . Retrieved Matter . | . . . . . Retrieved Components . | . . . . . Parts Scanalyzed . | . . . . . Part Schematics Acquired . | . . . . . Parts Damaged . | . . . . . Bothacking | -11 -10 -9 -8 -7 ------------ Run | Yrd Mat Mat Mat Fac Used RIF Installer . | . . . . . Robots Hacked . | . . . . . Non-combat . | . . . . . Combat . | . . . . . Robot Hacks Applied . | . . . . . Relay Couplers Released . | . . . . . Fabnet Peak Effective % . | . . . . . Robots Rewired . | . . . . . Allies Hacked . | . . . . . Hacks Repelled . | . . . . . Allies | -11 -10 -9 -8 -7 -------- Run | Yrd Mat Mat Mat Fac Total Allies . | . . . . . Largest Group . | . . . . . Highest-Rated Group . | . . . . . Highest-Rated Ally . | . . . . . Total Orders . | . . . . . Ally Attacks . | . . . . . Total Damage . | . . . . . Kills . | . . . . . Allies Corrupted . | . . . . . Allies Melted . | . . . . . Intel | -11 -10 -9 -8 -7 ------- Run | Yrd Mat Mat Mat Fac Robot Analysis Total 1 | . . . 1 . Derelict Logs Recovered . | . . . . . Drone Launches . | . . . . . Drone Recoveries . | . . . . . Exploration | -11 -10 -9 -8 -7 ------------- Run | Yrd Mat Mat Mat Fac Turns Passed 1820 | 162 268 720 532 138 Spaces Moved 1145 | 101 180 435 327 102 Core 17 | 17 . . . . Treads . | . . . . . Legs 1128 | 84 180 435 327 102 Wheels . | . . . . . Hover . | . . . . . Flight . | . . . . . Fastest Speed 50 | 50 120 120 120 120 Average Speed 119 | 115 120 120 120 120 Slowest Speed 190 | 120 120 190 190 120 Overloaded Moves . | . . . . . Propulsion Burnouts . | . . . . . Robots Hopped . | . . . . . Cave-ins Triggered . | . . . . . Exploration Rate (%) 22 | 4 36 38 32 4 Regions Visited 4 Branch Regions . Pre-discovered Areas . | . . . . . Known Exits Taken 2 | . . 1 1 . Unknown Exits Taken 2 | 1 1 . . . Scrap Searched . | . . . . . Spaces Dug 18 | . . . 18 . Terrain Destroyed 65 | . . 47 18 . Melee . | . . . . . Projectile . | . . . . . AOE 65 | . . 47 18 . Terrain Rammed . | . . . . . Walls Destroyed . | . . . . . Machines Disabled . | . . . . . Actions | -11 -10 -9 -8 -7 --------- Run | Yrd Mat Mat Mat Fac Total 1400 | 126 209 543 408 114 Wait 55 | 4 15 33 2 1 Move 1141 | 100 179 434 326 102 Hop . | . . . . . Pick Up 25 | 6 3 6 8 2 Fast Attach 11 | 4 . 7 . . Attach 11 | 3 . 1 5 2 Detach 2 | . . 1 1 . Swap 28 | . 1 11 14 2 Drop 23 | . . 7 13 3 Fire 104 | 9 11 43 39 2 Melee . | . . . . . Ram . | . . . . . Kick . | . . . . . Crush . | . . . . . Escape Stasis . | . . . . . Rewire . | . . . . . Trap . | . . . . . Miscellaneous . | . . . . . Route ------- -11/Scrapyard -10/Materials (discovered 2 exits: *Mat / [*Min]) -9/Materials (discovered 2 exits: *Mat / *Min) -8/Materials (discovered 3 exits: *Fac x3) -7/Factory History --------- Turn | Location | Event 20 | -11/Scrapyard | Discovered new exit (range 16) 163 | -11/Scrapyard | Entered Materials 220 | -10/Materials | Discovered new exit (range 10) 313 | -10/Materials | Build established: Mutant 415 | -10/Materials | Discovered new exit (range 10) 431 | -10/Materials | Entered another Materials area 431 | -9/Materials | Evolved 2 slots: Utility x2 654 | -9/Materials | Discovered new exit (range 13) 695 | -9/Materials | Identified exit to Mines 1128 | -9/Materials | Discovered new exit (range 16) 1149 | -9/Materials | Identified exit to Materials 1151 | -9/Materials | Entered another Materials area 1151 | -8/Materials | Evolved 2 slots: Propulsion x2 1669 | -8/Materials | Identified exit to Factory 1683 | -8/Materials | Entered Factory 1683 | -7/Factory | Evolved 2 slots: Weapon x2 1821 | -7/Factory | Self-destructed Last Messages --------------- >>Recycling(Report) Matter reserves: 0 Inventory: Plasma Cannon (36%) 01750_ ALERT: All DSF locations entering lockdown mode. 01764_ P-60 Hacker destroyed. 01764_ R-06 Scavenger destroyed. 01768_ Dropped Imp. Heat Sink. 01769_ Acquired Imp. Heat Sink. 01773_ Acquired 42 matter. 01778_ Acquired 98 matter. 01786_ R-06 Scavenger collects Sml. Storage Unit. 01786_ Dropped Med. Matter Pod. 01787_ R-06 Scavenger collects Lgt. Ion Engine. 01787_ Acquired Shock Rifle. 01789_ R-06 Scavenger collects Gravmag System. 01793_ R-06 Scavenger collects Target Analyzer. 01795_ R-06 Scavenger collects Med. Matter Pod. 01796_ R-06 Scavenger collects Com. Wheel. 01821_ Connecting with Terminal... Map ----- +----------------------------------------------------+ | ??????????????????????????????????# ?????????? | | ??????????????????????????????????# #????????? | | ??????????????????????????????????# #????????? | | ??????????????????????????????????# #????????? | | ??????????????????????????????????+ +????????? | | ??????????????????????????????????# #????????? | | ??????????????????????????????????# #????????? | | ??????????????????????????????????# #????????? | | ??????????????????????????????????# #????????? | | ??????????????????????????????????# #????????? | | ??????????????????????????????????# #????????? | | ??????????????????????????????????# #????????? | | ??????????????????????????????????# #??????### | | ??????????????????????????????????# #?####?# | | ?????????????####+################# ###T ### " | | ?????????????+ # " | | ?????????????# # " | | ?????????????+ # " | | ?????????????# x # " | | ?????????????# # | | ?????????????# #####+################# # | | ?????????????# # #???????????# ### | | ?????????????+ + ]u #???????????#! | | ?????????????####### #???????????#! | | ???????????????????# [#???????????# | | ???????????????????# @ #???????????# | | ???????????????????# ""T"" #???????????# | | ???????????????????# """"" #????###########+#### | | ???????????????????# #????# # | | ???????????????????###########????# # | | ??????????????????????????????????# ^ # | | ??????????????????????????????????# # | | ??????????????????????????????????# """ """ # | | ??????????????????????????????????#! """ """ # | | ????????????????X?????????????????# """ """ # | | ??????????????????????????????????# # | | ??????????????????????????????????# """^""" ### | | ??????????????????????????????x???# """ """ #?? | | ??????????????????????????????????# """ """ #?? | | ??????????????????????????????????# ? #?? | | ??????????????????????????????????########?#####?? | | ?????????????????????????????????????????????????? | | ?????????????????????????????????????????????????? | | ?????????????????????????????????????????????????? | | ?????????????????????????????????????????????????? | | ?????????????????????????????????????????????????? | | | | | | | | | +----------------------------------------------------+ Best States ------------- Heat Dissipation 48 Energy Generation 14 Energy Capacity 275 Matter Stores 300 Matter Capacity 300 Sight Range 16 Robot Scan Range 15 Terrain Scan Density 10 Armor Coverage 225 Evasion (%) 55 Targeting Accuracy 8 Item Schematics ----------------- None Robot Schematics ------------------ None Fabricated ------------ Nothing Alien Tech Used ----------------- None Achievements -------------- None Challenges ------------ None Game ------ Seed MediumIntegrityPick Manual? 0 Play Time 00:22:56 Cumulative 213.4 hours Start 2024.09.15 @ 16:52:39 End 2024.09.19 @ 16:14:44 Sessions 3 Manual Loads 0 Difficulty Rogue Special Mode None Game No. 361 Rogue 361 Adventurer 0 Explorer 0 Win Type - Total 1 Types 1/0/0/0/0/0/0/0/0 Lore% 30 Gallery% 51 Achievement% 38 Wizard Run 0 Options --------- Layout 1 ASCII 0 Keyboard 1 Movement Vi Keybinds 0 Fullscreen 0 Font 20/SmallcapsGlow Map View 59x39 Zoom Use 0% Tactical HUD 1 Map Filters NONE Filters NONE Steam 1 RUN: 4ca75317-7314-475c-b7ed-fab0e6ecdabc